[Event "Chess.com Isle of Man Masters"]
[Site "Villa Marina, Douglas, Isle of Man, United Kingdom"]
[Date "2018.10.22"]
[Round "3.6"]
[White "Gupta, Abhijeet"]
[Black "Gelfand, Boris"]
[Result "1/2-1/2"]
[TimeControl "40 moves in 100 minutes, f.b. 20 moves in 50 minutes f.b. 15 minutes with a 30 second increment from move 0"]
[WhiteElo "2588"]
[BlackElo "2701"]

1. d4 {[%clk 01:40:49]} {[%emt 00:00:10]} Nf6 {[%clk 01:40:54]} {[%emt
00:00:07]} 2. c4 {[%clk 01:41:14]} {[%emt 00:00:05]} e6 {[%clk 01:41:20]}
{[%emt 00:00:04]} 3. Nf3 {[%clk 01:41:21]} {[%emt 00:00:22]} d5 {[%clk
01:41:45]} {[%emt 00:00:05]} 4. Nc3 {[%clk 01:41:45]} {[%emt 00:00:06]} c6
{[%clk 01:42:09]} {[%emt 00:00:06]} 5. Bg5 {[%clk 01:41:31]} {[%emt 00:00:44]}
h6 {[%clk 01:42:06]} {[%emt 00:00:34]} 6. Bh4 {[%clk 01:41:53]} {[%emt
00:00:09]} dxc4 {[%clk 01:42:28]} {[%emt 00:00:08]} 7. e4 {[%clk 01:42:18]}
{[%emt 00:00:04]} g5 {[%clk 01:42:53]} {[%emt 00:00:06]} 8. Bg3 {[%clk
01:42:40]} {[%emt 00:00:08]} b5 {[%clk 01:43:21]} {[%emt 00:00:03]} 9. Be2
{[%clk 01:43:03]} {[%emt 00:00:07]} Bb7 {[%clk 01:43:47]} {[%emt 00:00:05]} 10.
h4 {[%clk 01:43:10]} {[%emt 00:00:22]} g4 {[%clk 01:44:09]} {[%emt 00:00:08]}
11. Ne5 {[%clk 01:43:36]} {[%emt 00:00:05]} Nbd7 {[%clk 01:44:21]} {[%emt
00:00:19]} 12. Nxd7 {[%clk 01:43:43]} {[%emt 00:00:22]} Qxd7 {[%clk 01:44:43]}
{[%emt 00:00:08]} 13. Be5 {[%clk 01:44:06]} {[%emt 00:00:06]} Bg7 {[%clk
01:44:39]} {[%emt 00:00:35]} 14. Bxg4 {[%clk 01:44:00]} {[%emt 00:00:37]} O-O-O
{[%clk 01:37:04]} {[%emt 00:08:05]} 15. Bh3 {[%clk 01:44:05]} {[%emt 00:00:24]}
Ne8 {[%clk 01:31:59]} {[%emt 00:05:35]} 16. Bxg7 {[%clk 01:44:19]} {[%emt
00:00:15]} Nxg7 {[%clk 01:32:27]} {[%emt 00:00:03]} 17. Qf3 {[%clk 01:44:37]}
{[%emt 00:00:11]} Qxd4 {[%clk 01:10:53]} {[%emt 00:22:04]} 18. O-O {[%clk
01:44:54]} {[%emt 00:00:13]} f5 {[%clk 01:01:26]} {[%emt 00:09:57]} 19. Rad1
{[%clk 01:45:11]} {[%emt 00:00:13]} Qe5 {[%clk 00:47:11]} {[%emt 00:14:45]} 20.
exf5 {[%clk 01:42:21]} {[%emt 00:03:20]} Rxd1 {[%clk 00:46:36]} {[%emt
00:01:06]} 21. Qxd1 {[%clk 01:42:27]} {[%emt 00:00:24]} Rd8 {[%clk 00:46:18]}
{[%emt 00:00:49]} 22. Qc1 {[%clk 01:41:49]} {[%emt 00:01:07]} Nxf5 {[%clk
00:45:31]} {[%emt 00:01:17]} 23. Re1 {[%clk 01:40:07]} {[%emt 00:02:12]} Qd6
{[%clk 00:44:57]} {[%emt 00:01:04]} 24. b3 {[%clk 01:27:50]} {[%emt 00:12:47]}
cxb3 {[%clk 00:25:55]} {[%emt 00:19:33]} 25. axb3 {[%clk 01:27:40]} {[%emt
00:00:39]} Kb8 {[%clk 00:25:15]} {[%emt 00:01:10]} 26. Ne4 {[%clk 01:27:05]}
{[%emt 00:01:05]} Qb4 {[%clk 00:18:55]} {[%emt 00:06:51]} 27. Nc5 {[%clk
01:17:00]} {[%emt 00:10:34]} Rd5 {[%clk 00:18:56]} {[%emt 00:00:29]} 28. Nxe6
{[%clk 00:30:04]} {[%emt 00:47:26]} Nxh4 {[%clk 00:18:59]} {[%emt 00:00:28]} 29.
Qe3 {[%clk 00:26:55]} {[%emt 00:03:38]} a6 {[%clk 00:18:35]} {[%emt 00:00:55]}
30. Qg3+ {[%clk 00:18:11]} {[%emt 00:09:13]} Ka7 {[%clk 00:18:45]} {[%emt
00:00:21]} 31. Qe3+ {[%clk 00:13:37]} {[%emt 00:05:04]} c5 {[%clk 00:15:31]}
{[%emt 00:03:44]} 32. Rc1 {[%clk 00:13:29]} {[%emt 00:00:38]} Qd2 {[%clk
00:15:28]} {[%emt 00:00:33]} 33. Qxd2 {[%clk 00:13:13]} {[%emt 00:00:46]} Rxd2
{[%clk 00:15:53]} {[%emt 00:00:04]} 34. Rxc5 {[%clk 00:13:40]} {[%emt
00:00:04]} Bd5 {[%clk 00:14:00]} {[%emt 00:02:24]} 35. Nf4 {[%clk 00:10:14]}
{[%emt 00:03:56]} Bxb3 {[%clk 00:13:54]} {[%emt 00:00:36]} 36. Rh5 {[%clk
00:10:38]} {[%emt 00:00:05]} Rd4 {[%clk 00:09:43]} {[%emt 00:04:41]} 37. Rxh4
{[%clk 00:10:12]} {[%emt 00:00:56]} a5 {[%clk 00:10:10]} {[%emt 00:00:03]} 38.
Rg4 {[%clk 00:01:29]} {[%emt 00:09:13]} a4 {[%clk 00:09:36]} {[%emt 00:01:04]}
39. Ne2 {[%clk 00:00:44]} {[%emt 00:01:14]} Rxg4 {[%clk 00:02:01]} {[%emt
00:08:06]} 40. Bxg4 {[%clk 00:01:09]} {[%emt 00:00:05]} a3 {[%clk 00:02:30]}
{[%emt 00:00:02]} 41. Nc1 {[%clk 00:44:02]} {[%emt 00:07:36]} Bc4 {[%clk
00:47:38]} {[%emt 00:05:21]} 42. f4 {[%clk 00:43:54]} {[%emt 00:00:38]} b4
{[%clk 00:41:01]} {[%emt 00:07:08]} 43. Bd1 {[%clk 00:44:17]} {[%emt 00:00:06]}
a2 {[%clk 00:41:26]} {[%emt 00:00:05]} 44. Nxa2 {[%clk 00:44:44]} {[%emt
00:00:04]} Bxa2 {[%clk 00:41:55]} {[%emt 00:00:02]} 45. Kf2 {[%clk 00:45:01]}
{[%emt 00:00:12]} b3 {[%clk 00:41:28]} {[%emt 00:00:57]} 46. Bxb3 {[%clk
00:44:10]} {[%emt 00:01:21]} Bxb3 {[%clk 00:41:56]} {[%emt 00:00:03]} 47. g4
{[%clk 00:44:34]} {[%emt 00:00:06]} Kb6 {[%clk 00:42:10]} {[%emt 00:00:16]} 48.
Kg3 {[%clk 00:45:27]} {[%emt 00:00:06]} Kc5 {[%clk 00:43:05]} {[%emt 00:00:05]}
49. Kh4 {[%clk 00:45:52]} {[%emt 00:00:05]} Bf7 {[%clk 00:43:26]} {[%emt
00:00:09]} 50. g5 {[%clk 00:46:18]} {[%emt 00:00:04]} hxg5+ {[%clk 00:43:53]}
{[%emt 00:00:03]} 1/2-1/2

[Event "Chess.com Isle of Man Masters"]
[Site "Villa Marina, Douglas, Isle of Man, United Kingdom"]
[Date "2018.10.22"]
[Round "3.7"]
[White "Tregubov, Pavel V."]
[Black "Melkumyan, Hrant"]
[Result "1-0"]
[TimeControl "40 moves in 100 minutes, f.b. 20 moves in 50 minutes f.b. 15 minutes with a 30 second increment from move 0"]
[WhiteElo "2588"]
[BlackElo "2660"]

1. d4 {[%clk 01:40:57]} {[%emt 00:00:02]} Nf6 {[%clk 01:37:22]} {[%emt
00:03:32]} 2. c4 {[%clk 01:41:25]} e6 {[%clk 01:37:24]} {[%emt 00:00:37]} 3.
Nc3 {[%clk 01:41:47]} {[%emt 00:00:07]} Bb4 {[%clk 01:37:32]} {[%emt 00:00:21]}
4. e3 {[%clk 01:42:11]} {[%emt 00:00:07]} O-O {[%clk 01:37:46]} {[%emt
00:00:16]} 5. Nge2 {[%clk 01:42:36]} {[%emt 00:00:05]} Re8 {[%clk 01:32:52]}
{[%emt 00:05:24]} 6. a3 {[%clk 01:42:52]} {[%emt 00:00:14]} Bf8 {[%clk
01:33:14]} {[%emt 00:00:07]} 7. d5 {[%clk 01:43:11]} {[%emt 00:00:12]} a5
{[%clk 01:30:43]} {[%emt 00:03:00]} 8. Ng3 {[%clk 01:43:08]} {[%emt 00:00:32]}
Na6 {[%clk 01:29:34]} {[%emt 00:01:40]} 9. Be2 {[%clk 01:43:14]} {[%emt
00:00:24]} Nc5 {[%clk 01:24:20]} {[%emt 00:05:44]} 10. b3 {[%clk 01:43:24]}
{[%emt 00:00:20]} d6 {[%clk 01:21:09]} {[%emt 00:03:41]} 11. Rb1 {[%clk
01:32:33]} {[%emt 00:11:22]} c6 {[%clk 00:59:10]} {[%emt 00:22:28]} 12. b4
{[%clk 01:26:52]} {[%emt 00:06:11]} axb4 {[%clk 00:58:11]} {[%emt 00:01:29]} 13.
axb4 {[%clk 01:27:16]} {[%emt 00:00:06]} Na6 {[%clk 00:58:37]} {[%emt
00:00:04]} 14. e4 {[%clk 01:19:35]} {[%emt 00:08:12]} exd5 {[%clk 00:49:27]}
{[%emt 00:09:41]} 15. cxd5 {[%clk 01:18:34]} {[%emt 00:01:30]} cxd5 {[%clk
00:49:26]} {[%emt 00:00:31]} 16. exd5 {[%clk 01:18:35]} {[%emt 00:00:30]} Ng4
{[%clk 00:44:19]} {[%emt 00:05:36]} 17. Nce4 {[%clk 00:57:29]} {[%emt
00:21:36]} Nf6 {[%clk 00:44:24]} {[%emt 00:00:25]} 18. Nxf6+ {[%clk 00:54:04]}
{[%emt 00:03:55]} Qxf6 {[%clk 00:44:46]} {[%emt 00:00:07]} 19. O-O {[%clk
00:54:17]} {[%emt 00:00:17]} Bd7 {[%clk 00:44:24]} {[%emt 00:00:52]} 20. Bd3
{[%clk 00:53:18]} {[%emt 00:01:29]} Qh4 {[%clk 00:41:30]} {[%emt 00:03:24]} 21.
Bd2 {[%clk 00:40:10]} {[%emt 00:13:39]} Nc7 {[%clk 00:36:07]} {[%emt 00:05:52]}
22. Qf3 {[%clk 00:34:10]} {[%emt 00:06:30]} Qg4 {[%clk 00:33:49]} {[%emt
00:02:48]} 23. Qxg4 {[%clk 00:32:48]} {[%emt 00:01:53]} Bxg4 {[%clk 00:32:38]}
{[%emt 00:01:41]} 24. Bc4 {[%clk 00:32:23]} {[%emt 00:00:56]} Bd7 {[%clk
00:26:49]} {[%emt 00:06:19]} 25. b5 {[%clk 00:28:08]} {[%emt 00:04:45]} Rec8
{[%clk 00:27:05]} {[%emt 00:00:14]} 26. Rb4 {[%clk 00:20:52]} {[%emt 00:07:46]}
Ne8 {[%clk 00:25:37]} {[%emt 00:01:56]} 27. Re1 {[%clk 00:19:20]} {[%emt
00:02:02]} Nf6 {[%clk 00:20:21]} {[%emt 00:05:45]} 28. Bg5 {[%clk 00:17:20]}
{[%emt 00:02:31]} Ng4 {[%clk 00:18:00]} {[%emt 00:02:52]} 29. Be2 {[%clk
00:16:26]} {[%emt 00:01:24]} Re8 {[%clk 00:16:03]} {[%emt 00:02:27]} 30. h3
{[%clk 00:14:09]} {[%emt 00:02:47]} Ne5 {[%clk 00:16:12]} {[%emt 00:00:21]} 31.
Rc1 {[%clk 00:14:15]} {[%emt 00:00:24]} Rec8 {[%clk 00:13:31]} {[%emt
00:03:11]} 32. Rxc8 {[%clk 00:12:22]} {[%emt 00:02:23]} Bxc8 {[%clk 00:13:58]}
{[%emt 00:00:02]} 33. Be3 {[%clk 00:11:55]} {[%emt 00:00:57]} Nd7 {[%clk
00:13:09]} {[%emt 00:01:19]} 34. Ne4 {[%clk 00:09:31]} {[%emt 00:02:55]} b6
{[%clk 00:08:17]} {[%emt 00:05:22]} 35. Bg4 {[%clk 00:05:59]} {[%emt 00:04:01]}
Nc5 {[%clk 00:07:03]} {[%emt 00:01:45]} 36. Bxc8 {[%clk 00:06:01]} {[%emt
00:00:29]} Rxc8 {[%clk 00:07:26]} {[%emt 00:00:06]} 37. Nd2 {[%clk 00:05:36]}
{[%emt 00:00:55]} Be7 {[%clk 00:00:40]} {[%emt 00:07:17]} 38. Nc4 {[%clk
00:05:52]} {[%emt 00:00:13]} Bd8 {[%clk 00:00:34]} {[%emt 00:00:37]} 39. Nxd6
{[%clk 00:05:10]} {[%emt 00:01:12]} Ra8 {[%clk 00:00:40]} {[%emt 00:00:24]} 40.
Bxc5 {[%clk 00:01:01]} {[%emt 00:04:40]} bxc5 {[%clk 00:01:04]} {[%emt
00:00:06]} 41. Rb1 {[%clk 00:50:18]} {[%emt 00:01:13]} Kf8 {[%clk 00:47:44]}
{[%emt 00:03:50]} 42. b6 {[%clk 00:48:57]} {[%emt 00:01:52]} Ke7 {[%clk
00:34:54]} {[%emt 00:13:20]} 43. b7 {[%clk 00:43:13]} {[%emt 00:06:15]} Rb8
{[%clk 00:34:53]} {[%emt 00:00:31]} 44. Nc8+ {[%clk 00:43:02]} {[%emt
00:00:41]} Kd7 {[%clk 00:34:01]} {[%emt 00:01:22]} 45. Na7 {[%clk 00:43:15]}
{[%emt 00:00:17]} Bc7 {[%clk 00:34:25]} {[%emt 00:00:06]} 46. Nc6 {[%clk
00:43:19]} {[%emt 00:00:26]} Re8 {[%clk 00:34:50]} {[%emt 00:00:04]} 47. b8=Q
{[%clk 00:39:29]} {[%emt 00:04:21]} Bxb8 {[%clk 00:34:41]} {[%emt 00:00:40]} 48.
Rxb8 {[%clk 00:36:07]} {[%emt 00:03:52]} Rxb8 {[%clk 00:34:47]} {[%emt
00:00:24]} 49. Nxb8+ {[%clk 00:36:32]} {[%emt 00:00:05]} Kd6 {[%clk 00:35:12]}
{[%emt 00:00:04]} 50. Kf1 {[%clk 00:36:44]} {[%emt 00:00:19]} Kxd5 {[%clk
00:35:09]} {[%emt 00:00:33]} 51. Ke2 {[%clk 00:36:53]} {[%emt 00:00:21]} Kd6
{[%clk 00:35:08]} {[%emt 00:00:31]} 52. Kd3 {[%clk 00:37:16]} {[%emt 00:00:07]}
Kc7 {[%clk 00:33:57]} {[%emt 00:01:40]} 53. Na6+ {[%clk 00:37:41]} {[%emt
00:00:06]} Kb6 {[%clk 00:34:21]} {[%emt 00:00:05]} 54. Kc4 {[%clk 00:38:08]}
{[%emt 00:00:03]} Kxa6 {[%clk 00:34:37]} {[%emt 00:00:14]} 55. Kxc5 {[%clk
00:38:33]} {[%emt 00:00:05]} 1-0

[Event "Chess.com Isle of Man Masters"]
[Site "Villa Marina, Douglas, Isle of Man, United Kingdom"]
[Date "2018.10.22"]
[Round "3.8"]
[White "Xiong, Jeffery"]
[Black "Vishnu, Prasanna. V"]
[Result "1-0"]
[TimeControl "40 moves in 100 minutes, f.b. 20 moves in 50 minutes f.b. 15 minutes with a 30 second increment from move 0"]
[WhiteElo "2656"]
[BlackElo "2504"]

1. e4 {[%clk 01:40:54]} {[%emt 00:00:05]} c5 {[%clk 01:40:48]} {[%emt
00:00:13]} 2. Nf3 {[%clk 01:41:13]} {[%emt 00:00:10]} e6 {[%clk 01:41:06]}
{[%emt 00:00:13]} 3. d4 {[%clk 01:41:24]} {[%emt 00:00:19]} cxd4 {[%clk
01:41:29]} {[%emt 00:00:07]} 4. Nxd4 {[%clk 01:41:48]} {[%emt 00:00:05]} Nc6
{[%clk 01:41:54]} {[%emt 00:00:06]} 5. Nc3 {[%clk 01:42:06]} {[%emt 00:00:12]}
a6 {[%clk 01:42:10]} {[%emt 00:00:15]} 6. Nxc6 {[%clk 01:41:01]} {[%emt
00:01:34]} bxc6 {[%clk 01:42:35]} {[%emt 00:00:04]} 7. Bd3 {[%clk 01:41:19]}
{[%emt 00:00:12]} d5 {[%clk 01:40:45]} {[%emt 00:02:21]} 8. O-O {[%clk
01:40:29]} {[%emt 00:01:19]} Qc7 {[%clk 01:37:30]} {[%emt 00:03:46]} 9. Re1
{[%clk 01:37:14]} {[%emt 00:03:44]} Bb7 {[%clk 01:32:58]} {[%emt 00:05:02]} 10.
e5 {[%clk 01:24:31]} {[%emt 00:13:13]} c5 {[%clk 01:26:52]} {[%emt 00:06:36]}
11. b3 {[%clk 01:20:32]} {[%emt 00:04:29]} Ne7 {[%clk 01:25:06]} {[%emt
00:02:15]} 12. Na4 {[%clk 01:13:05]} {[%emt 00:07:58]} Nc6 {[%clk 01:19:27]}
{[%emt 00:06:09]} 13. Bf4 {[%clk 01:10:54]} {[%emt 00:02:40]} h5 {[%clk
01:06:52]} {[%emt 00:13:05]} 14. c3 {[%clk 01:02:03]} {[%emt 00:09:21]} Be7
{[%clk 00:59:49]} {[%emt 00:07:33]} 15. Qe2 {[%clk 01:01:39]} {[%emt 00:00:54]}
Kf8 {[%clk 00:43:06]} {[%emt 00:17:13]} 16. Rac1 {[%clk 00:58:10]} {[%emt
00:03:59]} h4 {[%clk 00:39:51]} {[%emt 00:03:45]} 17. h3 {[%clk 00:58:18]}
{[%emt 00:00:21]} g6 {[%clk 00:38:29]} {[%emt 00:01:52]} 18. Qe3 {[%clk
00:54:55]} {[%emt 00:03:53]} Nb8 {[%clk 00:36:58]} {[%emt 00:02:01]} 19. Bg5
{[%clk 00:38:48]} {[%emt 00:16:36]} Bxg5 {[%clk 00:34:46]} {[%emt 00:02:42]} 20.
Qxg5 {[%clk 00:39:16]} {[%emt 00:00:02]} Nd7 {[%clk 00:34:48]} {[%emt
00:00:29]} 21. b4 {[%clk 00:30:32]} {[%emt 00:09:14]} Rh5 {[%clk 00:28:51]}
{[%emt 00:06:27]} 22. Qf4 {[%clk 00:30:23]} {[%emt 00:00:39]} Rxe5 {[%clk
00:27:21]} {[%emt 00:01:59]} 23. Qh6+ {[%clk 00:29:34]} {[%emt 00:01:20]} Ke7
{[%clk 00:23:10]} {[%emt 00:04:42]} 24. Nxc5 {[%clk 00:22:28]} {[%emt
00:07:36]} Nxc5 {[%clk 00:14:55]} {[%emt 00:08:45]} 25. bxc5 {[%clk 00:22:56]}
{[%emt 00:00:02]} g5 {[%clk 00:15:06]} {[%emt 00:00:19]} 26. Qg7 {[%clk
00:21:21]} {[%emt 00:02:04]} Rxe1+ {[%clk 00:15:08]} {[%emt 00:00:28]} 27. Rxe1
{[%clk 00:21:49]} {[%emt 00:00:01]} Qf4 {[%clk 00:15:32]} {[%emt 00:00:06]} 28.
Rb1 {[%clk 00:21:57]} {[%emt 00:00:22]} Bc6 {[%clk 00:14:48]} {[%emt 00:01:14]}
29. Rb6 {[%clk 00:22:02]} {[%emt 00:00:25]} Kd7 {[%clk 00:07:00]} {[%emt
00:08:19]} 30. Rb4 {[%clk 00:22:04]} {[%emt 00:00:27]} Qc1+ {[%clk 00:06:55]}
{[%emt 00:00:35]} 31. Kh2 {[%clk 00:20:29]} {[%emt 00:02:05]} Ke7 {[%clk
00:06:40]} {[%emt 00:00:45]} 32. Qe5 {[%clk 00:17:55]} {[%emt 00:03:03]} Bb5
{[%clk 00:05:48]} {[%emt 00:01:23]} 33. a4 {[%clk 00:18:08]} {[%emt 00:00:17]}
Bd7 {[%clk 00:05:27]} {[%emt 00:00:51]} 34. Rb7 {[%clk 00:17:55]} {[%emt
00:00:43]} 1-0

[Event "Chess.com Isle of Man Masters"]
[Site "Villa Marina, Douglas, Isle of Man, United Kingdom"]
[Date "2018.10.22"]
[Round "3.9"]
[White "L'ami, Erwin"]
[Black "Harsha, Bharathakoti"]
[Result "1-0"]
[TimeControl "40 moves in 100 minutes, f.b. 20 moves in 50 minutes f.b. 15 minutes with a 30 second increment from move 0"]
[WhiteElo "2639"]
[BlackElo "2492"]

1. e4 {[%clk 01:40:52]} {[%emt 00:00:04]} d6 {[%clk 01:38:30]} {[%emt
00:02:33]} 2. d4 {[%clk 01:41:11]} {[%emt 00:00:11]} Nf6 {[%clk 01:38:53]}
{[%emt 00:00:07]} 3. Nc3 {[%clk 01:41:30]} {[%emt 00:00:11]} g6 {[%clk
01:38:32]} {[%emt 00:00:51]} 4. f4 {[%clk 01:39:08]} {[%emt 00:02:51]} Bg7
{[%clk 01:38:47]} {[%emt 00:00:16]} 5. Nf3 {[%clk 01:39:11]} {[%emt 00:00:26]}
c5 {[%clk 01:38:11]} {[%emt 00:01:06]} 6. Bb5+ {[%clk 01:36:05]} {[%emt
00:03:36]} Bd7 {[%clk 01:37:42]} {[%emt 00:01:00]} 7. e5 {[%clk 01:35:34]}
{[%emt 00:01:01]} Ng4 {[%clk 01:36:38]} {[%emt 00:01:34]} 8. Bxd7+ {[%clk
01:32:56]} {[%emt 00:03:07]} Qxd7 {[%clk 01:36:15]} {[%emt 00:00:53]} 9. d5
{[%clk 01:33:07]} {[%emt 00:00:19]} dxe5 {[%clk 01:34:16]} {[%emt 00:02:29]} 10.
h3 {[%clk 01:32:39]} {[%emt 00:00:58]} e4 {[%clk 01:31:31]} {[%emt 00:03:16]}
11. Nxe4 {[%clk 01:32:25]} {[%emt 00:00:43]} Nf6 {[%clk 01:31:04]} {[%emt
00:00:57]} 12. Nxf6+ {[%clk 01:32:19]} {[%emt 00:00:35]} Bxf6 {[%clk 01:31:20]}
{[%emt 00:00:14]} 13. O-O {[%clk 01:30:58]} {[%emt 00:01:51]} O-O {[%clk
01:30:31]} {[%emt 00:01:20]} 14. Be3 {[%clk 01:26:34]} {[%emt 00:04:52]} Bxb2
{[%clk 01:07:21]} {[%emt 00:23:41]} 15. Ne5 {[%clk 01:25:11]} {[%emt 00:01:53]}
Qc7 {[%clk 00:55:55]} {[%emt 00:11:57]} 16. Rb1 {[%clk 01:22:44]} {[%emt
00:02:56]} Bxe5 {[%clk 00:53:45]} {[%emt 00:02:41]} 17. fxe5 {[%clk 01:23:04]}
{[%emt 00:00:10]} Nd7 {[%clk 00:54:07]} {[%emt 00:00:08]} 18. e6 {[%clk
01:19:20]} {[%emt 00:04:13]} fxe6 {[%clk 00:44:53]} {[%emt 00:09:46]} 19. dxe6
{[%clk 01:18:54]} {[%emt 00:00:55]} Rxf1+ {[%clk 00:40:10]} {[%emt 00:05:14]}
20. Qxf1 {[%clk 01:18:57]} {[%emt 00:00:25]} Rf8 {[%clk 00:39:45]} {[%emt
00:00:55]} 21. Qc4 {[%clk 00:53:12]} {[%emt 00:26:15]} Ne5 {[%clk 00:39:42]}
{[%emt 00:00:35]} 22. Qe4 {[%clk 00:53:05]} {[%emt 00:00:36]} b6 {[%clk
00:21:21]} {[%emt 00:18:52]} 23. Kh1 {[%clk 00:44:35]} {[%emt 00:08:59]} Kg7
{[%clk 00:04:08]} {[%emt 00:17:43]} 24. Re1 {[%clk 00:32:18]} {[%emt 00:12:46]}
Nc6 {[%clk 00:03:50]} {[%emt 00:00:49]} 25. Qh4 {[%clk 00:29:08]} {[%emt
00:03:39]} Rf5 {[%clk 00:03:31]} {[%emt 00:00:50]} 26. Bh6+ {[%clk 00:25:55]}
{[%emt 00:03:43]} Kg8 {[%clk 00:03:59]} {[%emt 00:00:03]} 27. Rd1 {[%clk
00:24:43]} {[%emt 00:01:41]} Nd4 {[%clk 00:00:32]} {[%emt 00:03:59]} 28. Qe4
{[%clk 00:23:57]} {[%emt 00:01:16]} Qc8 {[%clk 00:00:39]} {[%emt 00:00:23]} 29.
c3 {[%clk 00:22:40]} {[%emt 00:01:46]} Rh5 {[%clk 00:00:40]} {[%emt 00:00:29]}
30. cxd4 {[%clk 00:19:22]} {[%emt 00:03:48]} Rxh6 {[%clk 00:01:07]} {[%emt
00:00:03]} 31. d5 {[%clk 00:14:54]} {[%emt 00:04:58]} g5 {[%clk 00:01:34]}
{[%emt 00:00:04]} 32. d6 {[%clk 00:14:08]} {[%emt 00:01:16]} exd6 {[%clk
00:01:57]} {[%emt 00:00:08]} 33. Rxd6 {[%clk 00:13:54]} {[%emt 00:00:43]} Qe8
{[%clk 00:01:20]} {[%emt 00:01:07]} 34. Qd5 {[%clk 00:12:57]} {[%emt 00:01:27]}
Kg7 {[%clk 00:00:42]} {[%emt 00:01:07]} 35. Rd7+ {[%clk 00:12:30]} {[%emt
00:00:56]} Kg6 {[%clk 00:00:39]} {[%emt 00:00:33]} 36. Qe4+ {[%clk 00:12:21]}
{[%emt 00:00:39]} 1-0

[Event "Chess.com Isle of Man Masters"]
[Site "Villa Marina, Douglas, Isle of Man, United Kingdom"]
[Date "2018.10.22"]
[Round "3.10"]
[White "Fridman, Daniel"]
[Black "Giri, Anish"]
[Result "1/2-1/2"]
[TimeControl "40 moves in 100 minutes, f.b. 20 moves in 50 minutes f.b. 15 minutes with a 30 second increment from move 0"]
[WhiteElo "2600"]
[BlackElo "2780"]

1. d4 {[%clk 01:34:46]} {[%emt 00:06:13]} Nf6 {[%clk 01:40:55]} {[%emt
00:00:06]} 2. c4 {[%clk 01:35:10]} {[%emt 00:00:06]} g6 {[%clk 01:41:22]}
{[%emt 00:00:03]} 3. Nc3 {[%clk 01:35:34]} {[%emt 00:00:06]} Bg7 {[%clk
01:39:16]} {[%emt 00:02:36]} 4. e4 {[%clk 01:35:18]} {[%emt 00:00:46]} d6
{[%clk 01:39:38]} {[%emt 00:00:08]} 5. Nf3 {[%clk 01:35:42]} {[%emt 00:00:05]}
O-O {[%clk 01:40:03]} {[%emt 00:00:05]} 6. Be2 {[%clk 01:36:08]} {[%emt
00:00:04]} e5 {[%clk 01:40:29]} {[%emt 00:00:04]} 7. O-O {[%clk 01:36:32]}
{[%emt 00:00:06]} Nc6 {[%clk 01:40:55]} {[%emt 00:00:04]} 8. dxe5 {[%clk
01:30:16]} {[%emt 00:06:46]} dxe5 {[%clk 01:40:11]} {[%emt 00:01:13]} 9. Bg5
{[%clk 01:30:38]} {[%emt 00:00:09]} Nd4 {[%clk 01:34:52]} {[%emt 00:05:49]} 10.
Nxd4 {[%clk 01:06:23]} {[%emt 00:24:45]} exd4 {[%clk 01:33:40]} {[%emt
00:01:42]} 11. Nd5 {[%clk 01:06:48]} {[%emt 00:00:05]} c6 {[%clk 01:33:56]}
{[%emt 00:00:15]} 12. e5 {[%clk 01:06:15]} {[%emt 00:01:03]} cxd5 {[%clk
01:34:07]} {[%emt 00:00:19]} 13. Qxd4 {[%clk 01:03:08]} {[%emt 00:03:37]} dxc4
{[%clk 01:33:25]} {[%emt 00:01:13]} 14. Qxd8 {[%clk 00:43:22]} {[%emt
00:20:15]} Rxd8 {[%clk 01:33:42]} {[%emt 00:00:12]} 15. exf6 {[%clk 00:43:49]}
{[%emt 00:00:03]} h6 {[%clk 01:32:24]} {[%emt 00:01:48]} 16. fxg7 {[%clk
00:40:50]} {[%emt 00:03:29]} hxg5 {[%clk 01:32:49]} {[%emt 00:00:04]} 17. Bxc4
{[%clk 00:41:16]} {[%emt 00:00:05]} Bf5 {[%clk 01:25:58]} {[%emt 00:07:21]} 18.
Rfd1 {[%clk 00:34:28]} {[%emt 00:07:18]} g4 {[%clk 01:12:18]} {[%emt 00:14:11]}
19. Bb3 {[%clk 00:21:38]} {[%emt 00:13:19]} Kxg7 {[%clk 00:53:21]} {[%emt
00:19:28]} 20. Rxd8 {[%clk 00:20:52]} {[%emt 00:01:16]} Rxd8 {[%clk 00:53:40]}
{[%emt 00:00:11]} 21. Rd1 {[%clk 00:21:17]} {[%emt 00:00:05]} Rc8 {[%clk
00:53:45]} {[%emt 00:00:25]} 22. f3 {[%clk 00:14:48]} {[%emt 00:06:59]} gxf3
{[%clk 00:53:56]} {[%emt 00:00:20]} 23. gxf3 {[%clk 00:15:13]} {[%emt
00:00:05]} b5 {[%clk 00:51:07]} {[%emt 00:03:19]} 24. Kf2 {[%clk 00:13:57]}
{[%emt 00:01:46]} a5 {[%clk 00:47:18]} {[%emt 00:04:20]} 25. Rd5 {[%clk
00:13:10]} {[%emt 00:01:17]} a4 {[%clk 00:35:31]} {[%emt 00:12:18]} 26. Bd1
{[%clk 00:13:34]} {[%emt 00:00:05]} Rb8 {[%clk 00:23:26]} {[%emt 00:12:35]} 27.
Rc5 {[%clk 00:12:02]} {[%emt 00:02:02]} Rd8 {[%clk 00:22:11]} {[%emt 00:01:45]}
28. Ke1 {[%clk 00:12:18]} {[%emt 00:00:14]} Bd3 {[%clk 00:22:16]} {[%emt
00:00:26]} 29. a3 {[%clk 00:06:25]} {[%emt 00:06:23]} f5 {[%clk 00:14:40]}
{[%emt 00:08:06]} 30. b3 {[%clk 00:04:57]} {[%emt 00:01:58]} axb3 {[%clk
00:14:47]} {[%emt 00:00:24]} 31. Bxb3 {[%clk 00:05:20]} {[%emt 00:00:06]} f4
{[%clk 00:12:56]} {[%emt 00:02:20]} 32. a4 {[%clk 00:01:53]} {[%emt 00:03:57]}
bxa4 {[%clk 00:11:35]} {[%emt 00:01:52]} 33. Bxa4 {[%clk 00:02:21]} {[%emt
00:00:02]} Kh6 {[%clk 00:09:21]} {[%emt 00:02:44]} 34. Kf2 {[%clk 00:00:42]}
{[%emt 00:02:09]} Rb8 {[%clk 00:06:24]} {[%emt 00:03:27]} 35. Rc1 {[%clk
00:00:35]} {[%emt 00:00:37]} Rb2+ {[%clk 00:06:21]} {[%emt 00:00:33]} 36. Kg1
{[%clk 00:01:03]} {[%emt 00:00:01]} Bf5 {[%clk 00:06:41]} {[%emt 00:00:10]} 37.
Rd1 {[%clk 00:00:57]} {[%emt 00:00:36]} Rb7 {[%clk 00:05:48]} {[%emt 00:01:24]}
38. Bc6 {[%clk 00:00:41]} {[%emt 00:00:46]} Rc7 {[%clk 00:04:46]} {[%emt
00:01:32]} 39. Bb5 {[%clk 00:01:09]} {[%emt 00:00:02]} Kh5 {[%clk 00:03:55]}
{[%emt 00:01:21]} 40. Bd3 {[%clk 00:00:59]} {[%emt 00:00:40]} Bh3 {[%clk
00:02:05]} {[%emt 00:02:19]} 41. Bf1 {[%clk 00:48:14]} {[%emt 00:03:16]} Kh4
{[%clk 00:49:28]} {[%emt 00:03:08]} 42. Rd8 {[%clk 00:48:21]} {[%emt 00:00:22]}
1/2-1/2